bitfinex/quotes_BTCUSD_20250508
["timestamp","ask_amount","ask_price","bid_price","bid_amount"]
[1746717801682,0.001,99976.0,99975.0,0.54970777]
[1746717801857,0.001,99976.0,99975.0,0.88970777]
[1746717802063,0.001,99976.0,99975.0,0.91746046]
[1746717802634,0.001,100010.0,100000.0,0.0299988]
[1746717802843,0.00145716,100010.0,100000.0,0.2299988]
[1746717803605,0.00145716,100010.0,100000.0,0.37760657]
[1746717803830,0.00145716,100010.0,100000.0,0.2299988]
[1746717804257,0.00245716,100010.0,100000.0,0.24453965]
[1746717804443,0.00145716,100010.0,100000.0,0.68520657]
[1746717805395,0.00145716,100010.0,100000.0,1.08520657]
[1746717805608,0.00145716,100010.0,100000.0,1.09982395]
[1746717806012,0.00145716,100010.0,100000.0,1.13142395]
[1746717806211,0.00145716,100010.0,100000.0,1.15915109]
[1746717806894,0.00145716,100010.0,100000.0,1.16015109]
[1746717807534,0.3753498,100080.0,100070.0,0.22983789]
[1746717807739,0.0299778,100070.0,100060.0,0.21447982]
[1746717807947,0.16394312,100070.0,100060.0,0.21447982]
[1746717808089,0.16144402,100070.0,100060.0,0.22447382]
[1746717808296,0.17143682,100070.0,100060.0,0.21447982]
[1746717808494,0.16144402,100070.0,100060.0,0.19986244]
[1746717808823,0.16144412,100070.0,100060.0,0.20985644]
[1746717809035,0.16544402,100070.0,100060.0,0.19986244]
[1746717809229,0.15545142,100070.0,100060.0,0.21985034]
[1746717809429,0.16544402,100070.0,100060.0,0.19986244]
[1746717809646,0.16544392,100070.0,100060.0,0.20985634]
[1746717810001,0.37779608,100070.0,100060.0,0.19986244]
[1746717810128,0.16544452,100070.0,100060.0,0.19986244]
[1746717810755,0.004,100070.0,100060.0,0.22984324]
[1746717811311,0.004,100070.0,100060.0,0.19986244]
[1746717811516,0.004,100070.0,100050.0,0.22447774]
[1746717811517,0.77369933,100070.0,100050.0,0.19986586]
[1746717811758,0.35841061,100070.0,100060.0,0.19988007]
[1746717811957,0.55988904,100050.0,100040.0,0.2144833]
[1746717812171,0.5409105,100050.0,100040.0,0.21453741]
[1746717812384,0.5409099,100050.0,100040.0,0.19992003]
[1746717812537,0.16205032,100050.0,100040.0,0.19992003]
[1746717812740,0.16454943,100050.0,100040.0,0.19992003]
[1746717812970,0.16205032,100050.0,100040.0,0.19992003]
[1746717813221,0.74884098,100060.0,100050.0,0.20989494]
[1746717813393,0.46065362,100060.0,100050.0,0.19990004]
[1746717813567,0.51204112,100060.0,100050.0,0.19990004]
[1746717813980,0.3556,100060.0,100050.0,0.21988954]
[1746717814181,0.890902,100060.0,100050.0,0.19990004]
[1746717814765,0.893902,100060.0,100050.0,0.19990004]
[1746717815169,0.893902,100060.0,100040.0,0.19992003]
[1746717815170,0.3599886,100050.0,100040.0,0.19992003]
[1746717815360,0.3599925,100030.0,100020.0,0.19988583]
[1746717815565,0.8495137,100030.0,100020.0,0.20988363]
[1746717815812,1.08995091,100030.0,100020.0,0.19988583]
[1746717815991,0.8700173,100030.0,100020.0,0.19988583]
[1746717816189,0.34,100030.0,100020.0,0.23987663]
[1746717816805,0.34013706,100030.0,100020.0,0.23987663]
[1746717817370,0.00013706,100030.0,100020.0,0.23987663]
[1746717817804,0.00013706,100030.0,100020.0,0.7116844]
[1746717818006,0.28859494,100080.0,100070.0,0.19986009]
[1746717818203,0.0099926,100070.0,100060.0,0.19986213]
[1746717818486,0.12065202,100070.0,100060.0,0.19986213]
[1746717818688,0.55515048,100070.0,100060.0,0.20985613]
[1746717818915,0.54515698,100070.0,100060.0,0.21984993]
[1746717819118,0.54515698,100070.0,100060.0,0.22984363]
[1746717819363,0.13064422,100070.0,100060.0,0.20985613]
[1746717819551,0.12065162,100070.0,100060.0,0.20985603]
[1746717819720,0.12065162,100070.0,100060.0,0.21984983]
[1746717819917,0.01512678,100080.0,100070.0,0.22983789]
[1746717820142,0.001,100070.0,100060.0,0.19986213]
[1746717820349,0.01349055,100070.0,100060.0,0.22984293]
[1746717820751,0.001,100070.0,100060.0,0.22984293]
[1746717820947,0.01349065,100070.0,100060.0,0.22984293]
[1746717821311,0.001,100070.0,100060.0,0.22984293]
[1746717821510,0.001,100070.0,100060.0,0.3450507]
[1746717823007,0.01512678,100080.0,100070.0,0.22983789]
[1746717823627,0.01512678,100080.0,100070.0,0.24437874]
[1746717823835,0.01512678,100080.0,100070.0,0.68504566]
[1746717824036,0.01512678,100080.0,100070.0,0.71794566]
[1746717824376,0.01612678,100080.0,100070.0,0.68504566]
[1746717824578,0.01612678,100080.0,100070.0,1.08504566]
[1746717824781,0.01533936,100120.0,100110.0,0.21975776]
[1746717824973,0.03041934,100120.0,100110.0,0.21975796]
[1746717825179,0.01997692,100110.0,100100.0,0.20977186]
[1746717825380,0.01997692,100110.0,100100.0,0.23974088]
[1746717825381,0.01997682,100110.0,100100.0,0.23974088]
[1746717825618,0.42495688,100120.0,100110.0,0.19978024]
[1746717825788,0.00045671,100120.0,100110.0,0.22974607]
[1746717826832,0.01744382,100120.0,100110.0,0.22974607]
[1746717827028,1.00167999,100120.0,100110.0,0.19978024]
[1746717827353,0.97470547,100120.0,100110.0,0.21975796]
[1746717827669,0.97770547,100120.0,100110.0,0.22974657]
[1746717827878,1.05839667,100120.0,100100.0,0.21976137]
[1746717828086,1.05839667,100120.0,100110.0,0.19978024]
[1746717828264,1.10098458,100120.0,100110.0,0.19978024]
[1746717828465,0.02996833,100100.0,100090.0,0.20977301]
[1746717828662,0.00998911,100100.0,100090.0,0.22975461]
[1746717828886,0.01997682,100110.0,100100.0,0.22976882]
[1746717829201,0.01997682,100110.0,100100.0,0.22976822]
[1746717829202,0.00998811,100110.0,100100.0,0.22976822]
[1746717829454,0.03995344,100110.0,100100.0,0.21977901]
[1746717829659,0.01997872,100100.0,100090.0,0.21976341]
[1746717829871,0.21977931,100100.0,100090.0,0.21976401]
[1746717830071,0.0099903,100090.0,100080.0,0.20978253]
[1746717830210,0.21980106,100090.0,100080.0,0.19979113]
[1746717830423,0.0399626,100090.0,100080.0,0.19984012]
[1746717830629,0.0099911,100080.0,100070.0,0.32433557]
[1746717830970,0.21980186,100090.0,100080.0,0.20983202]
[1746717831170,0.0199817,100090.0,100080.0,0.21982382]
[1746717831341,0.02247906,100090.0,100080.0,0.22981542]
[1746717831521,0.029972,100090.0,100080.0,0.23980692]
[1746717831730,0.029972,100090.0,100080.0,0.22981542]
[1746717831936,0.04246096,100090.0,100080.0,0.22028053]
[1746717832138,0.7374797,100090.0,100080.0,0.00045671]
[1746717832368,0.73498174,100090.0,100080.0,0.20029683]
[1746717832769,0.74428212,100090.0,100080.0,0.21028873]
[1746717832974,0.34930038,100090.0,100080.0,0.24026343]
[1746717833136,0.36928108,100090.0,100080.0,0.24026343]
[1746717833757,0.35929048,100090.0,100080.0,0.24026343]
[1746717834093,0.341,100090.0,100080.0,0.24026343]
[1746717834303,0.001,100090.0,100080.0,0.24026343]
[1746717835384,0.001,100090.0,100080.0,0.3554712]
[1746717837784,0.001,100090.0,100080.0,0.35633414]
[1746717838593,0.0309716,100090.0,100080.0,0.23113507]
[1746717838823,0.0309716,100090.0,100080.0,0.23113457]
[1746717839015,0.61927936,100090.0,100080.0,0.21115167]
[1746717839224,0.0109902,100090.0,100080.0,0.23113497]
[1746717839395,0.0109902,100090.0,100080.0,0.24112627]
[1746717839586,0.0109901,100090.0,100080.0,0.24112627]
[1746717839789,0.0309708,100090.0,100080.0,0.23113457]
[1746717839997,0.0209803,100090.0,100080.0,0.23113457]
[1746717840363,0.001,100090.0,100080.0,0.23113457]
[1746717840768,0.001,100090.0,100080.0,0.34634234]
[1746717842190,0.34,100110.0,100100.0,0.22976902]
[1746717842764,0.36928698,100110.0,100100.0,0.21977971]
[1746717842972,0.96754383,100110.0,100100.0,0.20979019]
[1746717843176,0.02996883,100100.0,100090.0,0.20979284]
[1746717843450,0.54905843,100110.0,100090.0,0.21978374]
[1746717843688,0.62075398,100100.0,100090.0,0.20979304]
[1746717843822,0.3884872,100100.0,100080.0,0.20115977]
[1746717844027,0.4084677,100090.0,100080.0,0.23113457]
[1746717844231,0.40079746,100110.0,100100.0,0.22976902]
[1746717844413,0.01997892,100100.0,100090.0,0.20981076]
[1746717844643,0.41845523,100100.0,100090.0,0.22979196]
[1746717846569,0.42876589,100100.0,100090.0,0.2306547]
[1746717846790,0.03028898,100100.0,100090.0,0.2506361]
[1746717846990,0.04277623,100100.0,100090.0,0.2406458]
[1746717847528,0.0502684,100100.0,100090.0,0.2506361]
[1746717847732,0.02097862,100100.0,100090.0,0.2506361]
[1746717847931,0.05094784,100100.0,100090.0,0.2406458]
[1746717848130,0.24075863,100100.0,100090.0,0.2406458]
[1746717848358,0.05094835,100100.0,100090.0,0.2506362]
[1746717848535,0.04345658,100100.0,100090.0,0.2506361]
[1746717848687,0.41945623,100100.0,100090.0,0.2506356]
[1746717848888,0.04095894,100100.0,100090.0,0.2206648]
[1746717849092,0.24325677,100100.0,100090.0,0.2306554]
[1746717849294,0.04095894,100100.0,100090.0,0.2506361]
[1746717849519,0.24325677,100100.0,100090.0,0.2006831]
[1746717849722,0.74063422,100100.0,100090.0,0.00086294]
[1746717849924,0.74996968,100100.0,100090.0,0.00086294]
[1746717850554,0.74896968,100100.0,100090.0,0.00086294]
[1746717850850,0.73963422,100100.0,100090.0,0.2006831]
[1746717851050,0.73963422,100100.0,100090.0,0.00086294]
[1746717852044,0.74163422,100100.0,100090.0,0.00086294]
[1746717852570,0.12795683,100100.0,100090.0,0.2206644]
[1746717852719,0.72092383,100100.0,100090.0,0.2106741]
[1746717854003,0.72092383,100100.0,100090.0,0.2006831]
[1746717854264,0.71093422,100100.0,100090.0,0.2006831]
[1746717854779,0.71093422,100100.0,100090.0,0.00086294]
[1746717854963,0.73234431,100100.0,100090.0,0.00086294]
[1746717857200,0.70094431,100100.0,100090.0,0.2106741]
[1746717857950,0.70094431,100100.0,100090.0,0.2306558]
[1746717858069,0.31245711,100100.0,100090.0,0.2406465]
[1746717858289,0.54180995,100110.0,100100.0,0.22976971]
[1746717858485,0.68046448,100110.0,100100.0,0.22976971]
[1746717858723,0.68046448,100110.0,100100.0,0.22976991]
[1746717859135,0.67047597,100110.0,100100.0,0.22976991]
[1746717859296,1.06895168,100110.0,100100.0,0.23975952]
[1746717859536,0.37402821,100110.0,100100.0,0.24974883]
[1746717859742,0.39400553,100110.0,100100.0,0.26442496]
[1746717859947,0.37402821,100110.0,100100.0,0.26442496]
[1746717860086,0.39400513,100110.0,100100.0,0.26442496]
[1746717860288,0.39999394,100110.0,100100.0,0.26442496]
[1746717860711,0.98027317,100110.0,100100.0,0.01467614]
[1746717861046,0.20979,100100.0,100090.0,0.00086294]
[1746717861245,1.43296327,100110.0,100100.0,0.20979019]
[1746717861446,1.43296327,100110.0,100100.0,0.22976951]
[1746717861447,0.38201682,100110.0,100100.0,0.22976951]
[1746717861649,0.38201682,100110.0,100100.0,0.23975902]
[1746717861650,0.60177488,100110.0,100100.0,0.23975902]
[1746717861859,0.60177488,100110.0,100100.0,0.22976951]
[1746717862060,0.99026208,100110.0,100100.0,0.22976951]
[1746717862237,0.98826208,100110.0,100100.0,0.23975902]
[1746717862781,0.77849283,100110.0,100100.0,0.24974843]
[1746717862939,0.97827307,100110.0,100100.0,0.2197799]
[1746717863137,0.96928516,100110.0,100090.0,0.2106734]
[1746717863343,0.03246584,100100.0,100090.0,0.2306549]
[1746717863538,0.00249751,100100.0,100090.0,0.2306549]
[1746717863912,0.03246549,100100.0,100090.0,0.24533648]
[1746717864087,0.03246539,100100.0,100090.0,0.24533648]
[1746717864321,0.39119741,100140.0,100090.0,0.24533648]
[1746717864322,0.07099772,100150.0,100090.0,0.42778762]
[1746717864572,0.08433606,100200.0,100090.0,0.42778762]
[1746717864573,0.0158,100260.0,100090.0,0.39698762]
[1746717864759,0.0020071,100370.0,100280.0,0.24392607]
[1746717864760,0.02362097,100310.0,100280.0,0.24392607]
[1746717864991,0.6544997,100300.0,100280.0,0.24392626]
[1746717865191,0.5518831,100290.0,100280.0,0.22398242]
[1746717865403,0.75130527,100290.0,100280.0,0.12520778]
[1746717865622,0.75130527,100290.0,100280.0,0.32664345]
[1746717865623,0.55241074,100290.0,100280.0,0.32664345]
[1746717865856,0.53246988,100290.0,100280.0,0.33462141]
[1746717866061,0.55241054,100290.0,100280.0,0.32464934]
[1746717866270,0.9839955,100290.0,100280.0,0.30544534]
[1746717866483,0.92112124,100290.0,100280.0,0.01]
[1746717866692,0.00997118,100280.0,100270.0,0.31012086]
[1746717866900,0.56642744,100290.0,100280.0,0.20944156]
[1746717867164,1.10547089,100290.0,100280.0,0.01446948]
[1746717867382,0.01994464,100270.0,100260.0,0.24945034]
[1746717867583,0.01994464,100270.0,100260.0,0.31011726]
[1746717867584,0.00997217,100270.0,100260.0,0.31011726]
[1746717867793,0.42243889,100280.0,100270.0,0.19946145]
[1746717867794,0.26852395,100280.0,100270.0,0.19946145]
[1746717868007,0.26852395,100280.0,100260.0,0.25945034]
[1746717868008,0.34,100270.0,100260.0,0.25945034]
[1746717868211,0.75246702,100270.0,100260.0,0.31011726]
[1746717868430,0.75237717,100270.0,100260.0,0.4045791]
[1746717868633,0.41246702,100270.0,100260.0,0.4045791]
[1746717868843,0.01365238,100310.0,100300.0,0.22931086]
[1746717869047,0.01365238,100310.0,100300.0,0.33931086]
[1746717869048,0.01378957,100310.0,100300.0,0.33931086]
[1746717869251,0.01378957,100310.0,100300.0,0.65899118]
[1746717869954,0.01378957,100310.0,100300.0,0.67399118]
[1746717870134,0.01910713,100340.0,100330.0,0.33924229]
[1746717870365,0.013529,100340.0,100330.0,0.43990921]
[1746717870579,0.01007101,100350.0,100340.0,0.68921943]
[1746717870789,0.0020071,100370.0,100360.0,0.67917376]
[1746717870973,0.564004,100400.0,100390.0,0.33910528]
[1746717871382,0.56446277,100400.0,100390.0,0.7797722]
[1746717871587,0.53808788,100400.0,100390.0,7.06992]
[1746717871792,0.11438788,100400.0,100390.0,2.152258]
[1746717872021,0.00451893,100420.0,100400.0,0.34908246]
[1746717872277,0.15146727,100430.0,100420.0,0.33907935]
[1746717872487,0.01991486,100420.0,100410.0,0.30918334]
[1746717872693,0.35074851,100430.0,100410.0,0.39985026]
[1746717872694,0.47450463,100430.0,100410.0,0.39985026]
[1746717872897,0.15560483,100430.0,100420.0,0.31115491]
[1746717873099,0.15560483,100430.0,100420.0,0.43970375]
[1746717873299,0.41246702,100440.0,100430.0,0.19914284]
[1746717873507,0.0151,100440.0,100430.0,0.19914368]
[1746717873710,0.79080686,100440.0,100430.0,0.2998106]
[1746717873900,0.78085147,100440.0,100430.0,0.2998106]
[1746717874158,0.36838445,100440.0,100430.0,0.32968095]
[1746717874407,0.86638747,100470.0,100430.0,0.32968095]
[1746717874408,0.0330588,100480.0,100470.0,0.03985846]
[1746717874642,0.0330588,100480.0,100470.0,0.22892285]
[1746717874931,0.03319657,100480.0,100470.0,0.32892285]
[1746717875567,0.00033,100490.0,100480.0,0.1]
[1746717875766,0.00033,100490.0,100480.0,0.10066692]
[1746717875767,0.62722179,100490.0,100480.0,0.10066692]
[1746717875943,0.22439661,100480.0,100470.0,0.1]
[1746717876138,0.64681556,100480.0,100470.0,0.17976066]
[1746717876302,0.64681556,100480.0,100470.0,0.12976066]
[1746717876502,0.64681556,100480.0,100470.0,0.03109374]
[1746717876853,1.00221556,100480.0,100470.0,0.02909374]
[1746717877054,0.66937034,100480.0,100470.0,0.02909374]
[1746717877263,0.24974854,100480.0,100470.0,0.02909374]
[1746717877484,1.00221556,100480.0,100470.0,0.02909374]
[1746717877683,1.08183736,100480.0,100470.0,0.02909374]
[1746717878098,1.00221556,100480.0,100470.0,0.02909374]
[1746717878304,1.00521556,100480.0,100470.0,0.02909374]
[1746717878508,0.58974854,100480.0,100470.0,0.02909374]
[1746717878727,0.0154,100480.0,100470.0,0.12976066]
[1746717878926,0.00404,100500.0,100490.0,0.05995054]
[1746717879110,0.01398955,100500.0,100490.0,0.40168143]
[1746717879401,0.24279661,100480.0,100470.0,0.07909374]
[1746717879576,0.23979661,100480.0,100470.0,0.07909374]
[1746717879988,0.75593055,100480.0,100470.0,0.02909374]
[1746717880182,0.99526363,100480.0,100470.0,0.02909374]
[1746717880386,1.09593055,100480.0,100470.0,0.02909374]
[1746717880591,0.68346353,100480.0,100470.0,0.02909374]
[1746717880795,0.25274854,100480.0,100470.0,0.02909374]
[1746717880974,0.25274854,100480.0,100470.0,0.12909374]
[1746717880975,0.66521556,100480.0,100470.0,0.12909374]
[1746717881335,0.24279661,100480.0,100470.0,0.12909374]
[1746717881539,0.003,100480.0,100470.0,0.46067402]
[1746717881664,0.36312,100500.0,100490.0,0.32887728]
[1746717881867,0.00404,100500.0,100490.0,0.4295442]
[1746717882100,0.01962109,100500.0,100490.0,0.4295442]
[1746717882633,0.00012733,100540.0,100530.0,0.32878622]
[1746717882839,0.03647922,100600.0,100590.0,0.05]
[1746717882975,0.24522732,100600.0,100590.0,0.05]
[1746717883179,0.0020871,100620.0,100610.0,0.30872636]
[1746717883427,0.0020871,100620.0,100610.0,0.3286043]
[1746717883629,0.01202528,100620.0,100610.0,0.15066692]
[1746717883877,0.22785368,100620.0,100610.0,0.11520777]
[1746717884083,0.21125368,100620.0,100610.0,0.11520777]
[1746717884287,0.21125368,100620.0,100610.0,0.10066692]
[1746717884505,0.51937511,100620.0,100610.0,0.10066692]
[1746717884733,0.00254786,100620.0,100610.0,0.10066692]
[1746717884940,0.00254786,100620.0,100610.0,0.10993927]
[1746717885153,0.0005,100650.0,100640.0,0.0099362]
[1746717885351,0.00993245,100680.0,100640.0,0.0099362]
[1746717885352,0.21622094,100690.0,100660.0,0.0496009]
[1746717885552,0.01986402,100680.0,100670.0,0.15026782]
[1746717885756,0.01986402,100680.0,100670.0,0.10066692]
[1746717885962,0.23249055,100690.0,100670.0,0.37334615]
[1746717886134,0.51255743,100680.0,100670.0,0.01454085]
[1746717886306,0.19864918,100680.0,100640.0,0.0496009]
[1746717886506,0.35987023,100650.0,100630.0,0.0596009]
[1746717886679,0.00993571,100640.0,100630.0,0.0496009]
[1746717886881,0.00993719,100630.0,100610.0,0.0496009]
[1746717887133,0.34,100640.0,100630.0,0.25828607]
[1746717887399,0.3563,100640.0,100630.0,0.0496009]
[1746717887595,0.0163,100640.0,100630.0,0.27815966]
[1746717887790,0.42380443,100690.0,100650.0,0.0496009]
[1746717887791,0.22742172,100690.0,100650.0,0.0496009]
[1746717887997,0.21128947,100690.0,100680.0,0.19864918]
[1746717888213,0.2090928,100710.0,100680.0,0.19864918]
[1746717888214,0.0105,100710.0,100680.0,3.72184012]
[1746717888419,0.02282597,100790.0,100760.0,0.00992417]
[1746717888583,0.00050209,100790.0,100780.0,0.24275934]
[1746717888836,0.00050209,100790.0,100780.0,0.39302716]
[1746717889031,0.00050209,100790.0,100780.0,0.4284865]
[1746717889253,0.00050209,100790.0,100780.0,1.9470685]
[1746717889559,0.00050209,100790.0,100780.0,1.17840867]
[1746717889722,0.134772,100800.0,100790.0,0.1096009]
[1746717889925,0.003976,100810.0,100800.0,0.0496009]
[1746717890131,0.001,100820.0,100800.0,4.27280867]
[1746717890367,0.02974831,100840.0,100800.0,0.05]
[1746717890569,0.02975146,100830.0,100810.0,0.00198325]
[1746717890721,0.19835512,100870.0,100830.0,0.05]
[1746717890722,0.029785,100850.0,100830.0,0.05]
[1746717890920,0.029785,100850.0,100840.0,0.00198276]
[1746717891121,0.00991542,100850.0,100840.0,0.05198276]
[1746717891332,0.01875803,100870.0,100850.0,0.17019179]
[1746717891538,0.22686278,100870.0,100860.0,0.08954671]
[1746717891741,0.7600097,100870.0,100860.0,0.06935492]
[1746717891943,0.01983664,100820.0,100810.0,0.00099147]
[1746717892146,0.91652997,100820.0,100810.0,0.00099147]
[1746717892345,1.42902183,100820.0,100810.0,0.0014745]
[1746717892561,0.5483538,100790.0,100780.0,0.00045568]
[1746717892760,1.41115328,100790.0,100700.0,0.6]
[1746717893056,0.2184389,100720.0,100710.0,0.05]
[1746717893220,0.31804403,100770.0,100710.0,0.05]
[1746717893221,0.19853953,100770.0,100730.0,0.05]
[1746717893423,0.22826711,100760.0,100750.0,0.05]
[1746717893650,0.21836158,100750.0,100740.0,0.05]
[1746717893858,0.23821102,100750.0,100740.0,0.2]
[1746717894064,0.20847751,100730.0,100720.0,0.31804403]
[1746717894215,0.19855058,100730.0,100720.0,0.51804403]
[1746717894427,0.2382589,100730.0,100720.0,0.51804403]
[1746717894745,0.5484986,100720.0,100710.0,0.2]
[1746717894947,0.2185134,100680.0,100670.0,0.2]
[1746717895188,0.19868865,100660.0,100650.0,0.36804403]
[1746717895393,0.21855681,100660.0,100650.0,0.2]
[1746717895595,0.21855681,100660.0,100630.0,0.31804403]
[1746717895596,0.53868865,100660.0,100600.0,0.31804403]
[1746717895807,0.20872666,100610.0,100600.0,0.31804403]
[1746717896011,0.20874731,100600.0,100590.0,0.3]
[1746717896210,0.19878739,100610.0,100600.0,0.2]
[1746717896211,0.35816,100610.0,100600.0,0.2]
[1746717896382,0.57682543,100610.0,100600.0,0.20045648]
[1746717896608,1.08988088,100610.0,100600.0,0.20045648]
[1746717896914,0.05223788,100620.0,100610.0,0.19502765]
[1746717897115,0.6030038,100620.0,100610.0,0.15066692]
[1746717897320,0.59002656,100610.0,100600.0,0.00045648]
[1746717897552,0.03508397,100580.0,100570.0,0.1900553]
[1746717897784,1.09286503,100570.0,100560.0,0.1900553]
[1746717897992,0.0158,100550.0,100540.0,0.1900553]
[1746717898207,0.0158,100550.0,100540.0,0.51948569]
[1746717898416,0.20881756,100570.0,100560.0,0.38894153]
[1746717898417,0.025,100570.0,100560.0,0.38894153]
[1746717898631,0.37316,100570.0,100560.0,0.29072222]
[1746717898850,0.5919125,100570.0,100560.0,0.1900553]
[1746717899067,0.21877435,100560.0,100550.0,0.10524882]
[1746717899278,0.71199743,100550.0,100540.0,0.10524882]
[1746717899486,0.0099452,100550.0,100540.0,0.10524882]
[1746717899692,0.0154,100580.0,100570.0,0.10524882]
[1746717899905,0.03528367,100580.0,100570.0,0.30411528]
[1746717900117,0.55712572,100620.0,100590.0,0.30407574]
[1746717900320,0.01,100580.0,100570.0,0.60880978]
[1746717900546,0.21873104,100580.0,100570.0,0.10524882]
[1746717900748,0.01988002,100600.0,100590.0,0.10524882]
[1746717900968,0.24012675,100610.0,100600.0,0.10524882]
[1746717901177,0.0263,100610.0,100600.0,0.30405597]
[1746717901426,0.01,100620.0,100610.0,0.13506573]
[1746717901641,0.23500095,100640.0,100630.0,0.10524882]
[1746717901786,0.2286439,100620.0,100610.0,0.20591574]
[1746717901989,0.21878891,100580.0,100570.0,0.70457183]
[1746717902187,0.02982511,100580.0,100570.0,0.8047822]
[1746717902535,0.03976685,100580.0,100570.0,0.81472542]
[1746717902768,0.0306,100600.0,100590.0,0.11518996]
[1746717902971,0.01,100600.0,100590.0,0.42462455]
[1746717903122,0.72845481,100640.0,100600.0,0.10524882]
[1746717903123,0.75366011,100610.0,100600.0,0.10524882]
[1746717903326,0.24930891,100590.0,100580.0,0.10524882]
[1746717903532,0.24930891,100590.0,100570.0,0.40045672]
[1746717903533,0.24008881,100580.0,100570.0,0.10570554]
[1746717903737,0.58008881,100580.0,100570.0,0.10570554]
[1746717903944,0.68075573,100580.0,100570.0,0.10570554]
[1746717904146,0.61854678,100580.0,100570.0,0.00045672]
[1746717904413,0.01989208,100540.0,100530.0,0.3041944]
[1746717904569,0.01989208,100540.0,100530.0,0.40486132]
[1746717904908,0.01989208,100540.0,100520.0,0.21922251]
[1746717904909,0.00994708,100530.0,100520.0,0.00045716]
[1746717905115,0.75460205,100540.0,100530.0,0.10524882]
[1746717905347,0.01988565,100570.0,100560.0,0.10524882]
[1746717905542,0.01988565,100570.0,100560.0,0.30411664]
[1746717905543,0.04114243,100570.0,100560.0,0.30411664]
[1746717905696,0.07135893,100600.0,100590.0,0.30406139]
[1746717905900,0.19882851,100590.0,100570.0,0.19883066]
[1746717906101,0.00994411,100560.0,100550.0,0.10524882]
[1746717906307,0.040745,100550.0,100540.0,0.30417462]
[1746717906506,0.0308,100540.0,100530.0,0.3041944]
[1746717906782,0.04074589,100540.0,100530.0,0.30465156]
[1746717906985,0.06063727,100540.0,100530.0,0.30465156]
[1746717907188,0.0308,100540.0,100530.0,0.31459883]
[1746717907396,0.0308,100540.0,100530.0,0.33449269]
[1746717907598,0.0308,100540.0,100530.0,0.30465156]
[1746717907802,0.0318,100560.0,100550.0,0.30415483]
[1746717908012,0.0161,100580.0,100570.0,0.3140586]
[1746717908218,0.01,100550.0,100540.0,0.1988895]
[1746717908423,0.39168772,100560.0,100550.0,0.30415483]
[1746717908629,0.23124668,100580.0,100560.0,0.30413505]
[1746717908838,0.04234253,100570.0,100560.0,0.30413505]
[1746717909037,0.5911524,100570.0,100560.0,0.10524882]
[1746717909245,0.24033034,100560.0,100550.0,0.19890184]
[1746717909460,0.38814313,100590.0,100580.0,0.10524882]
[1746717909668,0.39012,100590.0,100580.0,0.3040955]
[1746717909868,0.36832,100590.0,100580.0,0.43458822]
[1746717910070,0.35832,100590.0,100580.0,0.43458822]
[1746717910946,0.0326,100620.0,100610.0,0.30403621]
[1746717911151,0.26118188,100620.0,100610.0,0.10524882]
[1746717911365,0.24472703,100600.0,100590.0,0.30403923]
[1746717911581,0.2187524,100570.0,100560.0,0.50524882]
[1746717911787,0.2187524,100570.0,100560.0,0.08968581]
[1746717911788,0.2510524,100570.0,100560.0,0.08968581]
[1746717911995,0.03608713,100560.0,100550.0,0.28858969]
[1746717912198,0.06223094,100560.0,100550.0,0.28258969]
[1746717912352,0.05228703,100560.0,100550.0,0.28304685]
[1746717912550,0.77945173,100560.0,100550.0,0.28304685]
[1746717912796,1.20023133,100560.0,100550.0,0.00045716]
[1746717913019,0.34994708,100530.0,100520.0,0.08968581]
[1746717913360,1.19003642,100530.0,100520.0,0.00045756]
[1746717913578,0.21892694,100490.0,100480.0,0.30935949]
[1746717913798,0.88047981,100500.0,100490.0,0.28871058]
[1746717914019,0.03609504,100520.0,100510.0,0.28867098]
[1746717914258,0.05599098,100520.0,100510.0,0.28867098]
[1746717914476,0.0152,100540.0,100530.0,0.28861568]
[1746717914696,0.19894558,100530.0,100510.0,0.3893379]
[1746717914908,0.0152,100530.0,100520.0,0.28865119]
[1746717915117,0.03509326,100530.0,100520.0,0.28865119]
[1746717915344,0.01989326,100530.0,100520.0,0.28865119]
[1746717915573,0.0173,100560.0,100550.0,0.31842652]
[1746717915746,0.07327564,100560.0,100550.0,0.28859182]
[1746717915951,0.0099445,100550.0,100540.0,0.28861161]
[1746717916118,0.24979601,100550.0,100540.0,0.28861161]
[1746717916325,0.01,100530.0,100520.0,0.28910996]
[1746717916530,0.23987189,100540.0,100530.0,0.28863139]
[1746717917101,0.031,100540.0,100530.0,0.28863139]
[1746717917300,0.06303144,100560.0,100550.0,0.28859182]
[1746717917544,0.25197415,100560.0,100550.0,0.08968581]
[1746717917746,0.86697103,100560.0,100550.0,0.08968581]
[1746717917949,0.20887189,100540.0,100530.0,0.08968581]
[1746717918153,0.85416877,100540.0,100530.0,0.08968581]
[1746717918356,0.67983881,100540.0,100530.0,0.08968581]
[1746717918560,0.64529688,100540.0,100520.0,0.30900527]
[1746717918727,0.0303,100540.0,100530.0,0.30852524]
[1746717918930,0.06013767,100540.0,100530.0,0.19894558]
[1746717919133,0.06013767,100540.0,100520.0,0.28910996]
[1746717919134,0.25073983,100530.0,100520.0,0.28910996]
[1746717919482,0.54622996,100530.0,100520.0,0.29905822]
[1746717919689,0.0319,100530.0,100520.0,0.28910996]
[1746717919894,0.0319,100520.0,100510.0,0.07314239]
[1746717920090,0.0319,100540.0,100530.0,0.29198222]
[1746717920381,0.05179148,100540.0,100530.0,0.27208797]
[1746717920679,0.0319,100540.0,100530.0,0.27208797]
[1746717920887,0.0319,100540.0,100530.0,0.28203524]
[1746717921100,0.53421926,100550.0,100540.0,0.27206819]
[1746717921305,0.0198892,100550.0,100540.0,0.28201448]
[1746717921512,0.0198892,100550.0,100540.0,0.27206819]
[1746717921703,0.0198892,100550.0,100540.0,0.28201448]
[1746717921902,0.65477638,100550.0,100540.0,0.27206819]
[1746717922158,0.65477628,100550.0,100540.0,0.27206819]
[1746717922361,0.001,100560.0,100550.0,0.3018829]
[1746717922563,0.001,100560.0,100550.0,0.2919385]
[1746717922767,0.51354761,100560.0,100550.0,0.07314239]
[1746717922993,0.51354761,100560.0,100520.0,0.20889627]
[1746717922994,0.01989286,100530.0,100520.0,0.20889627]
[1746717923215,0.6445079,100560.0,100550.0,0.2720484]
[1746717923420,0.84339473,100560.0,100550.0,0.2720484]
[1746717923632,0.20886301,100550.0,100540.0,0.07314239]
[1746717923837,0.71289558,100560.0,100550.0,0.07314239]
[1746717924049,0.0298345,100550.0,100540.0,0.27206819]
[1746717924256,0.00046174,100560.0,100550.0,0.2819935]
[1746717924466,0.11107218,100560.0,100550.0,0.2819937]
[1746717924670,0.10112866,100560.0,100550.0,0.2919389]
[1746717924840,0.00046174,100560.0,100550.0,0.49203795]
[1746717924981,0.01046174,100560.0,100550.0,0.49203795]
[1746717925415,0.01046174,100560.0,100550.0,0.81249532]
[1746717925416,0.00046174,100560.0,100550.0,0.81249532]
[1746717925630,0.01040535,100560.0,100550.0,0.6720484]
[1746717925830,0.81388311,100560.0,100550.0,0.2720484]
[1746717926107,0.6348848,100560.0,100550.0,0.2720484]